Cogmind - Beta 17 @@@ ROGUE MODE // 2026.07.26 @ 20:50:17 Player: [THREAT] Result: Destroyed by 3T-7LO(R) with Subdweller Laser Performance ------------- Evolutions (0) 0 Regions Visited (3) 600 Robots Destroyed (36) 180 Value Destroyed (616) 616 Prototype IDs (0) 0 Alien Tech Used (0) 0 Bonus (0) 0 TOTAL SCORE: 1396 Bonus ------- None Cogmind --------- Core Integrity 0/250 Matter 300/300 Energy 239/250 System Corruption 0% Temperature Cool (6) Movement Rolling (120) Ox1 Location -10/Subcaves Parts ------- > --- POWER (1) -------- Ion Engine > --- PROPULSION (2) --- Light Treads Subdweller Monowheel > --- UTILITY (2) ------ Medium Storage Unit Subdweller Optics > --- WEAPON (2) ------- Subdweller Laser Heavy Battle Rifle > --- INVENTORY (10) --- Subdweller Power Source Heat Sink Medium Matter Pod (100) Medium Matter Pod (100) Weapon Shielding Hacking Suite Tractor Beam Subdweller Laser Grenade Launcher Mining Laser Peak State ------------ > --- POWER ------------ Ion Engine > --- PROPULSION ------- Light Treads Subdweller Monowheel > --- UTILITY ---------- Medium Storage Unit Subdweller Optics > --- WEAPON ----------- Subdweller Laser Heavy Battle Rifle > --- INVENTORY -------- Subdweller Power Source Aluminum Leg Heat Sink Medium Matter Pod Medium Matter Pod Weapon Shielding Hacking Suite Tractor Beam Grenade Launcher Mining Laser [Rating: 14] Favorites ----------- Power Ion Engine Engine Ion Engine Propulsion Light Treads Treads Light Treads Leg Aluminum Leg Wheel Subdweller Monowheel Utility Medium Storage Unit Device Tractor Beam Storage Medium Storage Unit Weapon Light Assault Rifle Energy Gun Subdweller Laser Ballistic Gun Light Assault Rifle Build | -11 -10 -10 -10 ------- Run | Yrd Mat Min Sub Slots Evolved . | . . . . Power . | . . . . Propulsion . | . . . . Utility . | . . . . Weapon . | . . . . Parts Attached 20 | 8 4 2 6 Power 4 | 1 1 . 2 Engine 4 | 1 1 . 2 Core . | . . . . Reactor . | . . . . Propulsion 6 | 4 1 . 1 Treads 3 | 2 1 . . Leg 2 | 2 . . . Wheel 1 | . . . 1 Hover . | . . . . Flight . | . . . . Utility 5 | 1 2 1 1 Device 3 | . 1 1 1 Storage 2 | 1 1 . . Processor . | . . . . Hackware . | . . . . Protection . | . . . . Artifact . | . . . . Weapon 5 | 2 . 1 2 Energy Gun 1 | . . . 1 Energy Cannon . | . . . . Ballistic Gun 4 | 2 . 1 1 Ballistic Cannon . | . . . . Launcher . | . . . . Special Weapon . | . . . . Impact Weapon . | . . . . Slashing Weapon . | . . . . Piercing Weapon . | . . . . Special Melee Weapon . | . . . . Unidentified Prototypes . | . . . . Parts Lost 6 | . 1 . 5 Power 2 | . 1 . 1 Propulsion 1 | . . . 1 Utility 1 | . . . 1 Weapon 2 | . . . 2 Highest Loss Streak 4 | . 1 . 4 To Critical Strikes . | . . . . Average Backups 8 | 2 7 9 9 Power . | . . . . Propulsion 1 | 1 2 1 . Utility 4 | . 2 5 6 Weapon 2 | . 2 3 2 Tool/Special . | . . . . Unused Backups 9 | . . 1 8 Power . | . . . . Propulsion . | . . . . Utility 6 | . . . 6 Weapon 3 | . . 1 2 Tool/Special . | . . . . Average Slot Usage (%) 88 | . 84 100 73 Engine 9 | . 11 14 1 Treads 24 | . 28 28 14 Device 10 | . 1 14 13 Storage 14 | . 14 14 14 Ballistic Gun 27 | . 28 28 25 Peak Build Rating 14 | 6 8 11 14 Average Rating 8 | 5 6 9 10 On Entrance 6 | . 6 8 11 Avg Prop Armor Cover (%) 13 | . . . 13 Naked Turns . | . . . . Heaviest Build 25 | 11 19 22 25 Greatest Support 40 | 40 40 40 40 Greatest Overweight (x) 1 | . . . 1 Average Overweight (x) . | . . . . Largest Inventory Capacity 10 | 8 10 10 10 Average Capacity 9 | 7 9 10 10 Most Carried 10 | 5 10 10 10 Average Carried 8 | 2 7 9 9 Final Capacity 10 | 8 10 10 10 Final Carried 10 | 5 10 10 10 Class Distribution -------------------- 53% | Mutant 46% | Scavenger-Mutant Dominant Class ---------------- Mutant | -10/Materials Scavenger-Mutant | -10/Mines Mutant | -10/Subcaves Resources | -11 -10 -10 -10 ----------- Run | Yrd Mat Min Sub Matter Collected 1072 | 336 416 172 148 Remotely 225 | . 18 172 35 Salvage Created 1487 | 191 659 370 267 Parts 83 | 11 39 16 17 Haulers Intercepted 1 | . 1 . . Recyclers Shooed 6 | . 4 2 . Parts Field Recycled . | . . . . Retrieved Matter . | . . . . Parts Self-Destructed 11 | . . . 11 Prevented . | . . . . Parts Restored . | . . . . Kills | -11 -10 -10 -10 ------- Run | Yrd Mat Min Sub Combat Hostiles Destroyed 13 | . 5 2 6 Guns 13 | . 5 2 6 Classes Destroyed 8 | 3 4 . 1 Worker 7 | 2 4 1 . Builder 2 | . 2 . . Tunneler 4 | 3 . 1 . Hauler 1 | . 1 . . Recycler 8 | 1 4 3 . Operator 1 | . 1 . . Grunt 9 | . 5 2 2 Subdweller 4 | . . . 4 Best Kill Streak 6 | 2 6 1 2 Combat Bots Only 2 | . 2 1 2 Max Kills in Single Turn 1 | 1 1 1 1 Gunslinging . | . . . . Exploded . | . . . . Melee . | . . . . Uniques/NPCs Destroyed . | . . . . Combat | -11 -10 -10 -10 -------- Run | Yrd Mat Min Sub Hostile Shots Fired 104 | . 44 20 40 Missed 38 | . 14 8 16 Hits 66 | . 30 12 24 Projectile 66 | . 30 12 24 Critical Strikes 1 | . 1 . . Damage Taken 1035 | . 352 172 511 Core 250 | . 78 . 172 Absorbed by Shields . | . . . . Core Remaining (%) 100 | 100 . . . Volleys Fired 130 | 14 57 34 25 Largest 2 | 2 2 2 2 Hottest 93 | 40 40 53 93 Shots Fired 257 | 28 114 68 47 Gun 257 | 28 114 68 47 Cannon . | . . . . Launcher . | . . . . Special . | . . . . Kinetic 251 | 28 114 68 41 Thermal 6 | . . . 6 Explosive . | . . . . Electromagnetic . | . . . . Robot Hit Streak 16 | 7 16 7 6 Robot Miss Streak 8 | 2 8 4 4 Penetration Max . | . . . . Secondary Targets 2 | . 2 . . Max Gunslinging Chain 1 | . 1 . . Shots Hit Robots 157 | 20 70 37 30 Core Hits 61 | 8 29 13 11 Critical Kills 3 | 1 1 . 1 Critical Parts Destroyed 1 | . 1 . . Critical Strikes 4 | 1 2 . 1 Destroy 4 | 1 2 . 1 Melee Attacks . | . . . . Impact . | . . . . Slashing . | . . . . Piercing . | . . . . Sneak Attacks . | . . . . Combat Hostiles . | . . . . Follow-up Attacks . | . . . . Damage Inflicted 1864 | 218 757 389 500 Guns 1862 | 218 755 389 500 Cannons . | . . . . Explosions . | . . . . Melee . | . . . . Ramming 2 | . 2 . . Kinetic 1795 | 218 755 389 433 Thermal 67 | . . . 67 Explosive . | . . . . Electromagnetic . | . . . . Impact . | . . . . Slashing . | . . . . Piercing . | . . . . Highest Corruption . | . . . . Average Corruption . | . . . . Corruption Purged . | . . . . Corruption Blocked . | . . . . Overload Shots . | . . . . Overflow Damage . | . . . . Projectiles . | . . . . Explosions . | . . . . Melee . | . . . . Knockbacks . | . . . . Impact . | . . . . Kinetic . | . . . . Secondary . | . . . . Self-Inflicted Damage . | . . . . Shots . | . . . . Rammed 1 | . 1 . . Targets Rammed 1 | . 1 . . Kicked . | . . . . Crushed . | . . . . Highest Temperature 29 | . 29 9 . Average Temperature 8 | . 8 8 . Received Heat Transfer 378 | . 216 102 60 Siege Activations . | . . . . Martial Activations . | . . . . Shielding Activations . | . . . . Robots Disrupted . | . . . . Combat Hostiles . | . . . . Robots Corrupted . | . . . . Combat Hostiles . | . . . . Parts Fried . | . . . . Impact Corruptions . | . . . . Robots Melted . | . . . . Combat Hostiles . | . . . . Parts Melted . | . . . . Heat Transferred 75 | . . . 75 Parts Sabotaged . | . . . . Parts Stolen . | . . . . Parts Stripped . | . . . . Power Chain Reactions . | . . . . Alert | -11 -10 -10 -10 ------- Run | Yrd Mat Min Sub Maximum Alert Level . | . . . . Low Security (%) 100 | 100 100 100 . Level 1 . | . . . . Level 2 . | . . . . Level 3 . | . . . . Level 4 . | . . . . Level 5 . | . . . . High Security . | . . . . Max Security . | . . . . Peak Influence 82 | 10 82 45 . Initial 19 | . . 19 . Average 12 | 1 24 5 . Influence Increases 368 | 30 197 91 50 Destroy 0b10 Robot/C 180 | . 100 40 40 Destroy 0b10 Robot/NC 115 | 30 60 25 . Destroy Leader 52 | . 32 10 10 Successful Hack 5 | . 5 . . Destroy Structure 1 | . . 1 . Lose Combat Pursuer 15 | . . 15 . Influence Decreases 368 | 30 147 141 50 Entered New Map 31 | . . 31 . Time Decay 332 | 30 142 110 50 Lost Part 5 | . 5 . . Squads Dispatched 2 | . 2 . . Investigation . | . . . . Extermination . | . . . . Reinforcement 2 | . 2 . . Assault . | . . . . Garrison . | . . . . Intercept . | . . . . Searches Triggered . | . . . . Construction Impeded . | . . . . Haulers Reinforced . | . . . . Active Scanning Responses . | . . . . Cargo Convoy Interrupts . | . . . . Stealth | -11 -10 -10 -10 --------- Run | Yrd Mat Min Sub Distress Signals . | . . . . Communications Jammed . | . . . . Distress Signals . | . . . . Times Spotted 25 | . 14 3 8 Peak Tracking Total 3 | . 3 2 2 Tactical Retreats 1 | . . 1 . Traps | -11 -10 -10 -10 ------- Run | Yrd Mat Min Sub Traps Triggered . | . . . . Indirectly . | . . . . Trap Hack Attempts . | . . . . Triggered . | . . . . Disarmed . | . . . . Reprogrammed . | . . . . Reused . | . . . . Traps Extracted . | . . . . Installed . | . . . . Triggered . | . . . . Machines | -11 -10 -10 -10 ---------- Run | Yrd Mat Min Sub Machines Disabled . | . . . . Max in Single Turn . | . . . . Machines Repaired . | . . . . Machines Dismantled . | . . . . Machines Sabotaged . | . . . . Overloaded Fab Kills . | . . . . Hacking | -11 -10 -10 -10 --------- Run | Yrd Mat Min Sub Machines Accessed 2 | . 2 . . Terminals 1 | . 1 . . Fabricators . | . . . . Repair Stations . | . . . . Recycling Units 1 | . 1 . . Scanalyzers . | . . . . Garrison Access . | . . . . Total Hacks 3 | . 3 . . Successful 2 | . 2 . . Failed 1 | . 1 . . Catastrophic . | . . . . Database Lockouts . | . . . . Manual 2 | . 2 . . Terminals 2 | . 2 . . Fabricators . | . . . . Repair Stations . | . . . . Recycling Units 1 | . 1 . . Scanalyzers . | . . . . Garrison Access . | . . . . Terminal Hacks . | . . . . Fabricator Hacks . | . . . . Repair Station Hacks . | . . . . Recycling Unit Hacks 1 | . 1 . . Report Inventory 1 | . 1 . . Scanalyzer . | . . . . Garrison Access Hacks . | . . . . Unauthorized Hacks 1 | . 1 . . Terminals 1 | . 1 . . Botnet 1 | . 1 . . Fabricators . | . . . . Repair Stations . | . . . . Recycling Units . | . . . . Scanalyzers . | . . . . Garrison Access . | . . . . Data Cores Recovered . | . . . . Used . | . . . . Hacking Detections 1 | . 1 . . Full Trace Events . | . . . . Feedback Events . | . . . . Feedback Blocked . | . . . . Robot Schematics Acquired . | . . . . Robots Built . | . . . . Authchips . | . . . . Time . | . . . . Total Robot Build Rating . | . . . . Part Schematics Acquired . | . . . . Parts Built . | . . . . Authchips . | . . . . Time . | . . . . Total Part Build Rating . | . . . . Part Studies Acquired . | . . . . Parts Repaired . | . . . . Time . | . . . . Parts Recycled . | . . . . Recycled Matter . | . . . . Retrieved Matter . | . . . . Retrieved Components . | . . . . Parts Scanalyzed . | . . . . Part Schematics Acquired . | . . . . Parts Damaged . | . . . . Bothacking | -11 -10 -10 -10 ------------ Run | Yrd Mat Min Sub Used RIF Installer . | . . . . Robots Hacked . | . . . . Non-combat . | . . . . Combat . | . . . . Robot Hacks Applied . | . . . . Relay Couplers Released . | . . . . Fabnet Peak Effective % . | . . . . Robots Rewired . | . . . . Allies Hacked . | . . . . Hacks Repelled . | . . . . Allies | -11 -10 -10 -10 -------- Run | Yrd Mat Min Sub Total Allies . | . . . . Largest Group . | . . . . Highest-Rated Group . | . . . . Highest-Rated Ally . | . . . . Total Orders . | . . . . Ally Attacks . | . . . . Total Damage . | . . . . Kills . | . . . . Allies Corrupted . | . . . . Allies Melted . | . . . . Intel | -11 -10 -10 -10 ------- Run | Yrd Mat Min Sub Active Infowar (turns) 404 | . . . 404 Optics 404 | . . . 404 Robot Analysis Total . | . . . . Derelict Logs Recovered 1 | . . 1 . Drone Launches . | . . . . Drone Recoveries . | . . . . Exploration | -11 -10 -10 -10 ------------- Run | Yrd Mat Min Sub Turns Passed 1774 | 146 494 687 447 Spaces Moved 727 | 60 171 274 222 Core 5 | 5 . . . Treads 684 | 28 171 274 211 Legs 27 | 27 . . . Wheels 11 | . . . 11 Hover . | . . . . Flight . | . . . . Fastest Speed 50 | 50 160 160 120 Average Speed 157 | 132 160 160 159 Slowest Speed 240 | 160 160 160 240 Overloaded Moves . | . . . . Propulsion Burnouts . | . . . . Robots Hopped . | . . . . Potential Cave-ins . | . . . . Cave-ins Triggered . | . . . . Exploration Rate (%) 35 | 4 41 77 20 Regions Visited 3 Branch Regions 2 Pre-discovered Areas . | . . . . Known Exits Taken 1 | . . 1 . Unknown Exits Taken 2 | 1 1 . . Scrap Searched 1 | . . 1 . Spaces Dug . | . . . . Terrain Destroyed 2 | . . 1 1 Melee . | . . . . Projectile 2 | . . 1 1 AOE . | . . . . Terrain Rammed . | . . . . Walls Destroyed . | . . . . Machines Disabled . | . . . . Actions | -11 -10 -10 -10 --------- Run | Yrd Mat Min Sub Total 1121 | 100 289 463 269 Wait 211 | 8 46 147 10 Move 724 | 59 170 273 222 Hop . | . . . . Pick Up 28 | 11 9 3 5 Fast Attach 1 | . . . 1 Attach 13 | 6 3 . 4 Detach . | . . . . Swap 6 | 2 1 2 1 Drop 7 | . 2 4 1 Fire 130 | 14 57 34 25 Melee . | . . . . Ram . | . . . . Kick . | . . . . Crush 1 | . 1 . . Escape Stasis . | . . . . Rewire . | . . . . Trap . | . . . . Miscellaneous . | . . . . Route ------- -11/Scrapyard -10/Materials -10/Mines (discovered 2 exits: [*Mat] / *Sub) -10/Subcaves History --------- Turn | Location | Event 32 | -11/Scrapyard | Discovered new exit (range 15) 147 | -11/Scrapyard | Entered Materials 304 | -10/Materials | Build established: Mutant 616 | -10/Materials | Discovered new exit (range 15) 641 | -10/Materials | Entered Mines 786 | -10/Mines | Identified exit to Subcaves 892 | -10/Mines | Build established: Scavenger-Mutant 1062 | -10/Mines | A weapon hastily lodged in a ceiling crevice suddenly fell to the ground 1204 | -10/Mines | Discovered new exit (range 9) 1328 | -10/Mines | Entered Subcaves 1329 | -10/Subcaves | Approached by a straggling Scientist 1388 | -10/Subcaves | Lost 4 parts (1p1n1u1w) 1639 | -10/Subcaves | Build established: Mutant 1699 | -10/Subcaves | Core integrity fell below 50% 1723 | -10/Subcaves | Core integrity fell below 20% 1775 | -10/Subcaves | Destroyed by 3T-7LO(R) with Subdweller Laser Last Messages --------------- KL-VGT(c): "I think it's somewhere south of here" KL-VGT(c): "I think it's somewhere southeast of here" Lgt. Assault Rifle destroyed. FN-DRL(R) destroyed. Subatomizers dissect the Sub. Power Source. 86-BE2(R) destroyed. Subatomizers dissect the Sub. Power Source. KL-VGT(c): "I think it's somewhere southeast of here" Acquired 50 matter. Subatomizers dissect the Sub. Power Source. Acquired Sub. Power Source. Acquired Ion Engine. Acquired 20 matter. Acquired Sub. Monowheel. Acquired 10 matter. Dropped Aluminum Leg. Acquired Sub. Laser. Map ----- +----------------------------------------------------+ | ???????# ##### ##????#########??????????? | | ???????# ## #??## #?###??????? | | ??????## #?## ? ## #??????? | | ??????# ##### #?# ???# #??????? | | ??????### ##????##?# #????# #??????? | | ????????# #####???????## ####?# #???????? | | ????????# ######???????## ### ##???????? | | ????????# ### #####??## ##????????? | | ????????# #### ##?????????? | | ???????## ## ##??????????? | | ??????## ## ####???????????? | | ??????# ### #??????????????? | | ??????# ### #??????????????? | | ??????## ## #####??????????????? | | ???????## ##### #??????????????????? | | ????????# ##???# #??????????????????? | | ????????# #????# ##?????????????????? | | ???????# ##????# ! #?????????????????? | | ??????# ##?????# %&!&##?????????????????? | | ??????# #??????##### %##??????????????????? | | ??????# #??##??????# c&#???????????????????? | | ??????# ## ### ????# = ##??????????????????? | | ??????## ?## ???# ## ###""""" ??????? | | ???????# ??## ### "" " " #???????? | | ???????## ???# # # # # "#???????? | | ????????##???# @#########??????????????? | | ?????????# ## ## #?????????????????????? | | ?????????#????### ???# ????????????????????? | | ?????????????????????# ???????????????????? | | ????????????????????# ""??????????????????? | | ????????????????????# RR """"????????????????? | | ????????????????????## ### ""???????????????? | | ?????????????????????# ##??# #???????????????? | | ?????????????????????## ##???? ##???????????????? | | ??????????????????????###???????#????????????????? | | ?????????????????????????????????????????????????? | | ?????????????????????????????????????????????????? | | ?????????????????????????????????????????????????? | | ?????????????????????????????????????????????????? | | ?????????????????????????????????????????????????? | | ?????????????????????????????????????????????????? | | ?????????????????????????????????????????????????? | | ?????????????????????????????????????????????????? | | ?????????????????????????????????????????????????? | | ?????????????????????????????????????????????????? | | ?????????????????????????????????????????????????? | | ?????????????????????????????????????????????????? | | ?????????????????????????????????????????????????? | | ?????????????????????????????????????????????????? | | ?????????????????????????????????????????????????? | +----------------------------------------------------+ Best States ------------- Heat Dissipation 25 Energy Generation 10 Energy Capacity 250 Matter Stores 300 Matter Capacity 300 Sight Range 21 Terrain Scan Density 10 Evasion (%) 50 Recoil Reduction 2 Item Schematics ----------------- None Robot Schematics ------------------ None Fabricated ------------ Nothing Repaired ---------- Nothing Studied --------- None Alien Tech Used ----------------- None Achievements -------------- None Challenges ------------ None Game ------ Seed ReflexSixMeganuke Manual? 0 Play Time 00:10:15 Cumulative 90.3 hours Start 2026.07.26 @ 20:42:12 End 2026.07.26 @ 20:50:17 Sessions 1 Manual Loads 0 Difficulty Rogue Special Mode None Game No. 86 Rogue 56 Adventurer 30 Explorer 0 Win Type - Total 1 Types 1/0/0/0/0/0/0/0/0/0 Lore% 33 Gallery% 37 Achievement% 37 Wizard Run 0 Options --------- Layout 2 ASCII 0 Keyboard 0 Movement Numpad Keybinds 0 Fullscreen 1 Font 16/SmallcapsGlow Map View 25x24 Zoom Use 66% Tactical HUD 0 Map Filters NONE Filters NONE Steam 1 RUN: fd86a970-f446-4cc4-8fd6-a05d7215653f